[Event "*** Titled Tuesday 3|2 Blitz"]
[Site "Chess.com"]
[Date "2016.10.04"]
[Round "3"]
[White "Lukianoo"]
[Black "pKiLz5Rn9b"]
[Result "1-0"]
[WhiteElo "2736"]
[BlackElo "2483"]
[TimeControl "180+2"]
[EndTime "11:36:32 PDT"]
[Termination "Lukianoo won by resignation"]

1. e4 {[%clk 0:03:01.9]} 1... e6 {[%clk 0:03:01.2]} 2. b3 {[%clk 0:03:02.1]}
2... d5 {[%clk 0:03:01.8]} 3. Bb2 {[%clk 0:03:01.8]} 3... a6 {[%clk 0:02:49.3]}
4. e5 {[%clk 0:02:57.2]} 4... c5 {[%clk 0:02:48.2]} 5. f4 {[%clk 0:02:57.6]}
5... Nc6 {[%clk 0:02:46.7]} 6. Nf3 {[%clk 0:02:57.9]} 6... Nge7 {[%clk
0:02:43.2]} 7. g3 {[%clk 0:02:49.5]} 7... b5 {[%clk 0:02:42.9]} 8. Bg2 {[%clk
0:02:49.1]} 8... Bb7 {[%clk 0:02:43.6]} 9. O-O {[%clk 0:02:46.2]} 9... Nf5
{[%clk 0:02:37.5]} 10. Nc3 {[%clk 0:02:37.6]} 10... Qb6 {[%clk 0:02:35.2]} 11.
Ne2 {[%clk 0:02:34.2]} 11... Nfd4 {[%clk 0:02:33.8]} 12. Nexd4 {[%clk
0:02:29.7]} 12... Nxd4 {[%clk 0:02:35.1]} 13. Nxd4 {[%clk 0:02:22.5]} 13... cxd4
{[%clk 0:02:37]} 14. f5 {[%clk 0:02:15.1]} 14... Bc5 {[%clk 0:02:20.8]} 15. Qg4
{[%clk 0:02:12.4]} 15... g6 {[%clk 0:02:09.4]} 16. fxg6 {[%clk 0:02:13.1]} 16...
hxg6 {[%clk 0:02:07.1]} 17. d3 {[%clk 0:02:10.6]} 17... Rh5 {[%clk 0:02:01.5]}
18. Rae1 {[%clk 0:02:02]} 18... Bb4 {[%clk 0:01:56.6]} 19. Re2 {[%clk
0:02:01.4]} 19... Rc8 {[%clk 0:01:49]} 20. Bxd4 {[%clk 0:01:57.3]} 20... Bc5
{[%clk 0:01:44.8]} 21. Bxc5 {[%clk 0:01:57.9]} 21... Qxc5+ {[%clk 0:01:39.1]}
22. d4 {[%clk 0:01:59]} 22... Qa3 {[%clk 0:01:34.6]} 23. Ref2 {[%clk 0:01:53.6]}
23... Rf5 {[%clk 0:01:24.5]} 24. Rxf5 {[%clk 0:01:45.5]} 24... gxf5 {[%clk
0:01:25.6]} 25. Qg8+ {[%clk 0:01:38.3]} 25... Qf8 {[%clk 0:01:18.2]} 26. Qxf8+
{[%clk 0:01:38.7]} 26... Kxf8 {[%clk 0:01:20.1]} 27. Rf2 {[%clk 0:01:34.1]}
27... b4 {[%clk 0:01:14.4]} 28. Bf1 {[%clk 0:01:31.8]} 28... a5 {[%clk
0:01:15.6]} 29. h4 {[%clk 0:01:27.1]} 29... Kg7 {[%clk 0:01:16.4]} 30. Bd3
{[%clk 0:01:19.4]} 30... Rg8 {[%clk 0:01:06.8]} 31. Kg2 {[%clk 0:01:10.4]} 31...
f6 {[%clk 0:00:53.2]} 32. Rf4 {[%clk 0:00:59.7]} 32... Kf7 {[%clk 0:00:35.2]}
33. g4 {[%clk 0:00:51.7]} 33... Rxg4+ {[%clk 0:00:20.2]} 34. Rxg4 {[%clk
0:00:52.4]} 34... fxg4 {[%clk 0:00:22.1]} 35. exf6 {[%clk 0:00:53.7]} 35... Kxf6
{[%clk 0:00:23.7]} 36. Kg3 {[%clk 0:00:54.9]} 36... Bc8 {[%clk 0:00:22]} 37. Kf4
{[%clk 0:00:38.1]} 37... Bd7 {[%clk 0:00:19]} 38. Be2 {[%clk 0:00:38.6]} 38...
g3 {[%clk 0:00:19.2]} 39. Kxg3 {[%clk 0:00:39.2]} 39... e5 {[%clk 0:00:19.4]}
40. dxe5+ {[%clk 0:00:39.4]} 40... Kxe5 {[%clk 0:00:21.3]} 41. h5 {[%clk
0:00:37.9]} 41... Kf6 {[%clk 0:00:13.9]} 42. Kh4 {[%clk 0:00:31.4]} 42... d4
{[%clk 0:00:07.3]} 43. Bd3 {[%clk 0:00:31.3]} 43... Bc6 {[%clk 0:00:04.9]} 44.
h6 {[%clk 0:00:32]} 44... Bf3 {[%clk 0:00:06.1]} 45. h7 {[%clk 0:00:33]} 45...
Kg7 {[%clk 0:00:07.6]} 46. Kg5 {[%clk 0:00:34.1]} 46... Bd5 {[%clk 0:00:05.5]}
47. Kf4 {[%clk 0:00:33.9]} 47... a4 {[%clk 0:00:07.1]} 48. Ke5 {[%clk
0:00:32.9]} 48... Bxb3 {[%clk 0:00:08.7]} 49. cxb3 {[%clk 0:00:32.5]} 1-0

[Event "*** Titled Tuesday 3|2 Blitz"]
[Site "Chess.com"]
[Date "2016.10.04"]
[Round "3"]
[White "hansen"]
[Black "mwpchess"]
[Result "0-1"]
[WhiteElo "2634"]
[BlackElo "2467"]
[TimeControl "180+2"]
[EndTime "11:36:36 PDT"]
[Termination "mwpchess won by resignation"]

1. e4 {[%clk 0:03:02]} 1... c6 {[%clk 0:03:00.7]} 2. d4 {[%clk 0:03:02.6]} 2...
d5 {[%clk 0:03:01.5]} 3. e5 {[%clk 0:03:04.2]} 3... Bf5 {[%clk 0:03:02]} 4. Nf3
{[%clk 0:03:04.9]} 4... e6 {[%clk 0:03:02.8]} 5. Be2 {[%clk 0:03:05.2]} 5... c5
{[%clk 0:03:03]} 6. Be3 {[%clk 0:03:04.4]} 6... Qb6 {[%clk 0:02:55.5]} 7. Nc3
{[%clk 0:03:02.5]} 7... Nc6 {[%clk 0:02:55.6]} 8. O-O {[%clk 0:02:59.3]} 8...
Qxb2 {[%clk 0:02:55.5]} 9. Nb5 {[%clk 0:02:56.2]} 9... c4 {[%clk 0:02:54.5]} 10.
Nc7+ {[%clk 0:01:48.2]} 10... Kd7 {[%clk 0:02:52.2]} 11. Nxa8 {[%clk 0:01:50.1]}
11... Bxc2 {[%clk 0:02:51.8]} 12. Qe1 {[%clk 0:01:49.5]} 12... Bb4 {[%clk
0:02:49.6]} 13. Bd2 {[%clk 0:01:48.4]} 13... c3 {[%clk 0:02:33.7]} 14. Be3
{[%clk 0:01:48.1]} 14... Nge7 {[%clk 0:02:26.2]} 15. Ng5 {[%clk 0:01:33.5]}
15... Bg6 {[%clk 0:02:15.4]} 16. h4 {[%clk 0:01:31.1]} 16... h5 {[%clk
0:02:10.4]} 17. Nh3 {[%clk 0:00:51.4]} 17... Rxa8 {[%clk 0:01:57.7]} 18. Nf4
{[%clk 0:00:51.1]} 18... c2 {[%clk 0:01:28.6]} 19. Qc1 {[%clk 0:00:50.9]} 19...
Bc3 {[%clk 0:01:13]} 20. Nxg6 {[%clk 0:00:24.4]} 20... fxg6 {[%clk 0:01:13.3]}
21. Bd3 {[%clk 0:00:15.9]} 21... Qxa1 {[%clk 0:01:07.8]} 22. Qa3 {[%clk
0:00:15]} 22... Bb4 {[%clk 0:01:02]} 23. Qa4 {[%clk 0:00:13.4]} 23... Qc3 {[%clk
0:01:01.3]} 24. Bxc2 {[%clk 0:00:14.7]} 24... a6 {[%clk 0:00:44.5]} 25. Bb1
{[%clk 0:00:13.3]} 25... b5 {[%clk 0:00:40.6]} 26. Qd1 {[%clk 0:00:13.7]} 26...
Nf5 {[%clk 0:00:39.9]} 27. Bxf5 {[%clk 0:00:14.4]} 27... exf5 {[%clk 0:00:39]}
28. Qf3 {[%clk 0:00:15.5]} 28... Ne7 {[%clk 0:00:34.5]} 29. Rc1 {[%clk
0:00:13.8]} 29... Qd3 {[%clk 0:00:33.7]} 30. e6+ {[%clk 0:00:10.8]} 30... Kxe6
{[%clk 0:00:32.9]} 31. Qg3 {[%clk 0:00:12.2]} 31... Rc8 {[%clk 0:00:32.3]} 32.
Qe5+ {[%clk 0:00:10.2]} 32... Kd7 {[%clk 0:00:23]} 33. Rxc8 {[%clk 0:00:10.7]}
33... Qd1+ {[%clk 0:00:19.4]} 34. Kh2 {[%clk 0:00:08]} 34... Nxc8 {[%clk
0:00:19.1]} 35. Qxd5+ {[%clk 0:00:08.1]} 35... Bd6+ {[%clk 0:00:19.7]} 36. g3
{[%clk 0:00:08.7]} 36... Ne7 {[%clk 0:00:20.3]} 37. Qb7+ {[%clk 0:00:09.4]}
37... Ke6 {[%clk 0:00:21.3]} 38. Qxa6 {[%clk 0:00:10.6]} 38... f4 {[%clk
0:00:21.5]} 39. gxf4 {[%clk 0:00:10.3]} 39... Qg4 {[%clk 0:00:19.8]} 40. Qxb5
{[%clk 0:00:11]} 40... Bxf4+ {[%clk 0:00:17.8]} 41. Kh1 {[%clk 0:00:09.7]} 41...
Qh3+ {[%clk 0:00:18.5]} 42. Kg1 {[%clk 0:00:10.8]} 42... Bh2+ {[%clk 0:00:19.7]}
43. Kh1 {[%clk 0:00:11.6]} 43... Bf4+ {[%clk 0:00:20.6]} 44. Kg1 {[%clk
0:00:13]} 44... Qg4+ {[%clk 0:00:18.7]} 45. Kf1 {[%clk 0:00:13.7]} 45... Bxe3
{[%clk 0:00:16.7]} 46. fxe3 {[%clk 0:00:14.8]} 46... Qf3+ {[%clk 0:00:17.3]} 47.
Kg1 {[%clk 0:00:15.9]} 47... Qxe3+ {[%clk 0:00:18.6]} 48. Kg2 {[%clk 0:00:17.3]}
48... Qxd4 {[%clk 0:00:20]} 49. a4 {[%clk 0:00:18.6]} 49... Qd5+ {[%clk
0:00:21.1]} 50. Kg3 {[%clk 0:00:19.1]} 50... Qxb5 {[%clk 0:00:21.5]} 51. axb5
{[%clk 0:00:21]} 51... Nd5 {[%clk 0:00:22.1]} 52. Kf3 {[%clk 0:00:21.7]} 52...
Kf5 {[%clk 0:00:23.4]} 0-1

[Event "*** Titled Tuesday 3|2 Blitz"]
[Site "Chess.com"]
[Date "2016.10.04"]
[Round "3"]
[White "andretta"]
[Black "macko06"]
[Result "1-0"]
[WhiteElo "2257"]
[BlackElo "2115"]
[TimeControl "180+2"]
[EndTime "11:36:49 PDT"]
[Termination "andretta won by resignation"]

1. b3 {[%clk 0:03:02]} 1... Nf6 {[%clk 0:03:00]} 2. Bb2 {[%clk 0:03:01.5]} 2...
g6 {[%clk 0:03:01.8]} 3. Bxf6 {[%clk 0:03:01.2]} 3... exf6 {[%clk 0:03:03]} 4.
c4 {[%clk 0:02:53.5]} 4... Bg7 {[%clk 0:03:04.4]} 5. Nc3 {[%clk 0:02:51.8]} 5...
f5 {[%clk 0:03:05.8]} 6. Rc1 {[%clk 0:02:50.9]} 6... d6 {[%clk 0:03:06.9]} 7. g3
{[%clk 0:02:48.6]} 7... O-O {[%clk 0:03:08.4]} 8. Bg2 {[%clk 0:02:46.1]} 8...
Nc6 {[%clk 0:03:09.6]} 9. e3 {[%clk 0:02:42.1]} 9... Re8 {[%clk 0:03:10.7]} 10.
Nge2 {[%clk 0:02:35.9]} 10... Bd7 {[%clk 0:03:11.2]} 11. O-O {[%clk 0:02:32.1]}
11... Rb8 {[%clk 0:03:11.1]} 12. d4 {[%clk 0:02:30]} 12... a6 {[%clk 0:03:11.8]}
13. a3 {[%clk 0:02:03.2]} 13... Ne7 {[%clk 0:03:03.5]} 14. b4 {[%clk 0:01:50.1]}
14... Nc8 {[%clk 0:02:54.6]} 15. Qb3 {[%clk 0:01:48]} 15... c5 {[%clk
0:02:52.7]} 16. dxc5 {[%clk 0:01:45.3]} 16... dxc5 {[%clk 0:02:53.3]} 17. bxc5
{[%clk 0:01:43.9]} 17... Qc7 {[%clk 0:02:50.1]} 18. Qb4 {[%clk 0:01:40.6]} 18...
Bf8 {[%clk 0:02:46.9]} 19. Nd5 {[%clk 0:01:37.2]} 19... Qxc5 {[%clk 0:02:46.6]}
20. Qxc5 {[%clk 0:01:33]} 20... Bxc5 {[%clk 0:02:48.5]} 21. Nf6+ {[%clk
0:01:31]} 21... Kg7 {[%clk 0:02:41.9]} 22. Nxd7 {[%clk 0:01:31.4]} 22... Bxa3
{[%clk 0:02:42.5]} 23. Ra1 {[%clk 0:01:22.1]} 23... Bb2 {[%clk 0:02:35.7]} 24.
Ra2 {[%clk 0:01:19.9]} 24... Be5 {[%clk 0:02:36.4]} 25. Nxb8 {[%clk 0:01:16.8]}
25... Bxb8 {[%clk 0:02:37.3]} 26. Bxb7 {[%clk 0:01:14.2]} 26... Nd6 {[%clk
0:02:38.6]} 27. Bxa6 {[%clk 0:01:14]} 27... Ne4 {[%clk 0:02:39.9]} 28. Bb5
{[%clk 0:01:12.8]} 28... Rd8 {[%clk 0:02:39.8]} 29. Nd4 {[%clk 0:01:11.6]} 29...
Be5 {[%clk 0:02:39.4]} 30. Nc6 {[%clk 0:01:11.3]} 30... Re8 {[%clk 0:02:39.5]}
31. Nxe5 {[%clk 0:01:11.4]} 31... Rxe5 {[%clk 0:02:41.4]} 32. Rd1 {[%clk
0:01:09.6]} 32... h5 {[%clk 0:02:38.7]} 33. Ra7 {[%clk 0:01:07.2]} 33... h4
{[%clk 0:02:36.3]} 34. Rd5 {[%clk 0:01:07.4]} 34... Re6 {[%clk 0:02:35.8]} 35.
c5 {[%clk 0:00:59.3]} 35... h3 {[%clk 0:02:34.4]} 36. f3 {[%clk 0:00:57]} 36...
Ng5 {[%clk 0:02:35.1]} 37. Kf2 {[%clk 0:00:57.3]} 37... Nh7 {[%clk 0:02:27.8]}
38. Rdd7 {[%clk 0:00:50.5]} 38... Ng5 {[%clk 0:02:27.8]} 39. Bc4 {[%clk
0:00:48]} 39... Re5 {[%clk 0:02:27.7]} 40. Rxf7+ {[%clk 0:00:47.1]} 40... Kh6
{[%clk 0:02:25.6]} 41. Rfe7 {[%clk 0:00:40.7]} 41... Rxc5 {[%clk 0:02:25.1]} 42.
Be2 {[%clk 0:00:41.1]} 42... Rc2 {[%clk 0:02:24.1]} 43. Ke1 {[%clk 0:00:39.9]}
43... Rc1+ {[%clk 0:02:22.8]} 44. Kd2 {[%clk 0:00:40.6]} 44... Rh1 {[%clk
0:02:24.1]} 45. Kc2 {[%clk 0:00:40.6]} 45... Rxh2 {[%clk 0:02:18.3]} 46. Kd3
{[%clk 0:00:41.5]} 46... Rg2 {[%clk 0:02:09.1]} 47. f4 {[%clk 0:00:42]} 47...
Rxg3 {[%clk 0:02:10.3]} 48. fxg5+ {[%clk 0:00:42]} 48... Kxg5 {[%clk 0:02:11.5]}
49. Ra1 {[%clk 0:00:40.8]} 49... Kh6 {[%clk 0:02:05.8]} 50. Rh1 {[%clk
0:00:40.9]} 50... g5 {[%clk 0:02:05]} 51. Re6+ {[%clk 0:00:39.3]} 51... Kg7
{[%clk 0:02:05.2]} 52. Re7+ {[%clk 0:00:38.8]} 52... Kf6 {[%clk 0:02:06.1]} 53.
Rh7 {[%clk 0:00:39.4]} 53... g4 {[%clk 0:02:07.5]} 54. Kd4 {[%clk 0:00:38.3]}
54... Rg2 {[%clk 0:02:07.9]} 55. Bd3 {[%clk 0:00:38]} 55... Kg6 {[%clk
0:02:06.2]} 56. Rh8 {[%clk 0:00:37.9]} 56... Rd2 {[%clk 0:02:04.2]} 57. Rg8+
{[%clk 0:00:35.7]} 57... Kf7 {[%clk 0:02:01.2]} 58. Rg5 {[%clk 0:00:36.3]} 58...
Ke6 {[%clk 0:01:59.2]} 59. Rxf5 {[%clk 0:00:33.7]} 59... h2 {[%clk 0:01:46.8]}
60. Rg5 {[%clk 0:00:31.3]} 60... Rg2 {[%clk 0:01:46.8]} 61. Rxh2 {[%clk
0:00:28.3]} 61... Rxh2 {[%clk 0:01:47]} 62. Rxg4 {[%clk 0:00:29.6]} 62... Ra2
{[%clk 0:01:47.3]} 63. Rf4 {[%clk 0:00:30]} 63... Ra4+ {[%clk 0:01:47.6]} 64.
Bc4+ {[%clk 0:00:31.2]} 64... Ke7 {[%clk 0:01:49.1]} 65. e4 {[%clk 0:00:31.5]}
65... Ra1 {[%clk 0:01:49.4]} 66. Rf5 {[%clk 0:00:32.1]} 66... Rd1+ {[%clk
0:01:50]} 67. Ke5 {[%clk 0:00:33.1]} 67... Rd2 {[%clk 0:01:49.1]} 68. Bd5 {[%clk
0:00:34.3]} 68... Rb2 {[%clk 0:01:48.9]} 69. Rh5 {[%clk 0:00:35.1]} 69... Kf8
{[%clk 0:01:48.5]} 70. Rh7 {[%clk 0:00:35.7]} 70... Rb6 {[%clk 0:01:46.1]} 71.
Be6 {[%clk 0:00:35.4]} 71... Rb2 {[%clk 0:01:44.7]} 72. Kf6 {[%clk 0:00:35.2]}
72... Rf2+ {[%clk 0:01:45.3]} 73. Bf5 {[%clk 0:00:36.6]} 73... Kg8 {[%clk
0:01:43.1]} 74. Ra7 {[%clk 0:00:35.5]} 74... Rd2 {[%clk 0:01:36.6]} 75. Ra8+
{[%clk 0:00:35.7]} 1-0

[Event "*** Titled Tuesday 3|2 Blitz"]
[Site "Chess.com"]
[Date "2016.10.04"]
[Round "3"]
[White "ChessWarrior7197"]
[Black "bugsbunny444"]
[Result "1-0"]
[WhiteElo "2475"]
[BlackElo "2332"]
[TimeControl "180+2"]
[EndTime "11:36:52 PDT"]
[Termination "ChessWarrior7197 won by checkmate"]

1. e4 {[%clk 0:03:01.9]} 1... e6 {[%clk 0:03:01]} 2. d4 {[%clk 0:03:02.1]} 2...
d5 {[%clk 0:03:02.6]} 3. Nd2 {[%clk 0:03:02.2]} 3... h6 {[%clk 0:03:03.3]} 4.
Ngf3 {[%clk 0:03:02]} 4... Nf6 {[%clk 0:03:04]} 5. e5 {[%clk 0:03:03.2]} 5...
Nfd7 {[%clk 0:03:05.5]} 6. c3 {[%clk 0:03:04.4]} 6... c5 {[%clk 0:03:07]} 7. Bd3
{[%clk 0:03:05.3]} 7... Nc6 {[%clk 0:03:08.5]} 8. O-O {[%clk 0:03:04.8]} 8... g5
{[%clk 0:03:09.5]} 9. dxc5 {[%clk 0:03:04.3]} 9... Bxc5 {[%clk 0:03:09.5]} 10.
Nb3 {[%clk 0:03:01.4]} 10... Bf8 {[%clk 0:03:10.3]} 11. Re1 {[%clk 0:02:50.9]}
11... Bg7 {[%clk 0:03:09.7]} 12. Nbd4 {[%clk 0:02:51.2]} 12... Ndxe5 {[%clk
0:02:35.4]} 13. Nxe5 {[%clk 0:02:49.4]} 13... Nxe5 {[%clk 0:02:35.5]} 14. Bc2
{[%clk 0:02:50.5]} 14... Bd7 {[%clk 0:02:00]} 15. Qh5 {[%clk 0:02:48.4]} 15...
Qf6 {[%clk 0:01:22.2]} 16. Nb3 {[%clk 0:02:48.5]} 16... O-O-O {[%clk 0:01:15.3]}
17. Be3 {[%clk 0:02:48.7]} 17... Nc6 {[%clk 0:01:12.6]} 18. Nd4 {[%clk
0:02:46.9]} 18... e5 {[%clk 0:00:51.5]} 19. Nxc6 {[%clk 0:02:47.7]} 19... bxc6
{[%clk 0:00:49.7]} 20. Bxa7 {[%clk 0:02:46.6]} 20... Kb7 {[%clk 0:00:49.8]} 21.
Bc5 {[%clk 0:02:45.8]} 21... Bf5 {[%clk 0:00:45.4]} 22. Bxf5 {[%clk 0:02:42.8]}
22... Qxf5 {[%clk 0:00:46.5]} 23. Qd1 {[%clk 0:02:44]} 23... Kc7 {[%clk
0:00:30.8]} 24. b4 {[%clk 0:02:42.2]} 24... e4 {[%clk 0:00:24]} 25. Qb3 {[%clk
0:02:37.5]} 25... Ra8 {[%clk 0:00:20.9]} 26. Rad1 {[%clk 0:02:36.9]} 26... Qe6
{[%clk 0:00:18.6]} 27. c4 {[%clk 0:02:34.1]} 27... Rhd8 {[%clk 0:00:16.4]} 28.
cxd5 {[%clk 0:02:34.3]} 28... Rxd5 {[%clk 0:00:17.3]} 29. Rc1 {[%clk 0:02:30.6]}
29... Rd3 {[%clk 0:00:11.6]} 30. Qxe6 {[%clk 0:02:29.8]} 30... fxe6 {[%clk
0:00:12.6]} 31. Rxe4 {[%clk 0:02:30.8]} 31... Kd7 {[%clk 0:00:07.8]} 32. h4
{[%clk 0:02:09.6]} 32... Rxa2 {[%clk 0:00:08]} 33. hxg5 {[%clk 0:02:10.8]} 33...
hxg5 {[%clk 0:00:09.9]} 34. Rce1 {[%clk 0:02:11.8]} 34... e5 {[%clk 0:00:10.3]}
35. R4e3 {[%clk 0:02:03.7]} 35... Rxe3 {[%clk 0:00:09]} 36. Rxe3 {[%clk
0:02:05.6]} 36... Ke6 {[%clk 0:00:07.1]} 37. Rd3 {[%clk 0:02:06.5]} 37... Kf5
{[%clk 0:00:03.6]} 38. Rd7 {[%clk 0:02:04.4]} 38... Bf6 {[%clk 0:00:04.6]} 39.
Rf7 {[%clk 0:02:04.9]} 39... Kg6 {[%clk 0:00:04.8]} 40. Rc7 {[%clk 0:02:05.7]}
40... Ra6 {[%clk 0:00:06.1]} 41. g4 {[%clk 0:02:05]} 41... Bg7 {[%clk
0:00:06.3]} 42. Kg2 {[%clk 0:02:05.5]} 42... Bf6 {[%clk 0:00:07.6]} 43. Kf3
{[%clk 0:02:04.7]} 43... Bd8 {[%clk 0:00:05.1]} 44. Rc8 {[%clk 0:02:03.8]} 44...
Bf6 {[%clk 0:00:04.3]} 45. Ke4 {[%clk 0:02:04.6]} 45... Bg7 {[%clk 0:00:05.3]}
46. f3 {[%clk 0:02:03]} 46... Bf6 {[%clk 0:00:06.4]} 47. Rg8+ {[%clk 0:01:59.3]}
47... Kf7 {[%clk 0:00:07.4]} 48. Rc8 {[%clk 0:01:58.1]} 48... Ke6 {[%clk
0:00:08.4]} 49. Kd3 {[%clk 0:01:45.1]} 49... Ra3+ {[%clk 0:00:08.4]} 50. Kc4
{[%clk 0:01:43.6]} 50... Rxf3 {[%clk 0:00:09.4]} 51. Rxc6+ {[%clk 0:01:44.8]}
51... Kf7 {[%clk 0:00:10.6]} 52. b5 {[%clk 0:01:45.8]} 52... Bd8 {[%clk
0:00:07.1]} 53. b6 {[%clk 0:01:45.7]} 53... Bxb6 {[%clk 0:00:08.2]} 54. Rxb6
{[%clk 0:01:45.2]} 54... Rf4+ {[%clk 0:00:08.9]} 55. Kd5 {[%clk 0:01:46.8]}
55... Rxg4 {[%clk 0:00:09.6]} 56. Kxe5 {[%clk 0:01:48.3]} 56... Rg2 {[%clk
0:00:07.2]} 57. Kf5 {[%clk 0:01:49]} 57... g4 {[%clk 0:00:08.3]} 58. Rb7+ {[%clk
0:01:50.3]} 58... Ke8 {[%clk 0:00:09.8]} 59. Bd6 {[%clk 0:01:48]} 59... g3
{[%clk 0:00:07.4]} 60. Ke6 {[%clk 0:01:49.1]} 60... Re2+ {[%clk 0:00:08.4]} 61.
Be5 {[%clk 0:01:49.8]} 61... Rd2 {[%clk 0:00:05.5]} 62. Bxg3 {[%clk 0:01:49.8]}
62... Kf8 {[%clk 0:00:04.6]} 63. Be5 {[%clk 0:01:50.3]} 63... Ke8 {[%clk
0:00:05.5]} 64. Re7+ {[%clk 0:01:49.7]} 64... Kd8 {[%clk 0:00:06.3]} 65. Rh7
{[%clk 0:01:50.5]} 65... Kc8 {[%clk 0:00:07]} 66. Rc7+ {[%clk 0:01:50.7]} 66...
Kd8 {[%clk 0:00:08.1]} 67. Rb7 {[%clk 0:01:45.6]} 67... Ke8 {[%clk 0:00:08]} 68.
Rg7 {[%clk 0:01:46.5]} 68... Kd8 {[%clk 0:00:08.5]} 69. Rg8# {[%clk 0:01:47.6]}
1-0

[Event "*** Titled Tuesday 3|2 Blitz"]
[Site "Chess.com"]
[Date "2016.10.04"]
[Round "3"]
[White "Mornar1951"]
[Black "ZapataCharlesS"]
[Result "1-0"]
[WhiteElo "2595"]
[BlackElo "2585"]
[TimeControl "180+2"]
[EndTime "11:37:06 PDT"]
[Termination "Mornar1951 won by resignation"]

1. Nf3 {[%clk 0:02:57.1]} 1... g6 {[%clk 0:02:24.2]} 2. d4 {[%clk 0:02:57]} 2...
Bg7 {[%clk 0:02:24.1]} 3. c4 {[%clk 0:02:58.1]} 3... c5 {[%clk 0:02:24.1]} 4. e4
{[%clk 0:02:58.5]} 4... Nc6 {[%clk 0:02:23.6]} 5. d5 {[%clk 0:02:59]} 5... Nd4
{[%clk 0:02:23.5]} 6. Nxd4 {[%clk 0:02:59.8]} 6... cxd4 {[%clk 0:02:17]} 7. Bd3
{[%clk 0:02:58.9]} 7... d6 {[%clk 0:02:17.8]} 8. O-O {[%clk 0:02:58.5]} 8... Nf6
{[%clk 0:02:18.6]} 9. Na3 {[%clk 0:02:42.7]} 9... O-O {[%clk 0:02:20.5]} 10. Nc2
{[%clk 0:02:43.7]} 10... Nd7 {[%clk 0:02:18.1]} 11. b4 {[%clk 0:02:33.6]} 11...
a5 {[%clk 0:02:18]} 12. a3 {[%clk 0:02:34.6]} 12... axb4 {[%clk 0:02:10.7]} 13.
axb4 {[%clk 0:02:36.5]} 13... Rxa1 {[%clk 0:02:12]} 14. Nxa1 {[%clk 0:02:37.9]}
14... Ne5 {[%clk 0:02:13.3]} 15. Nc2 {[%clk 0:02:34.3]} 15... Bg4 {[%clk
0:01:39.4]} 16. f3 {[%clk 0:02:29.9]} 16... Bc8 {[%clk 0:01:38.5]} 17. Bb2
{[%clk 0:02:30]} 17... Qc7 {[%clk 0:01:33]} 18. Bxd4 {[%clk 0:02:20.8]} 18...
Nxc4 {[%clk 0:01:32.2]} 19. Bxg7 {[%clk 0:02:18.3]} 19... Kxg7 {[%clk
0:01:32.1]} 20. Bxc4 {[%clk 0:02:13.5]} 20... Qxc4 {[%clk 0:01:31.5]} 21. Qd4+
{[%clk 0:02:15]} 21... Qxd4+ {[%clk 0:01:31.1]} 22. Nxd4 {[%clk 0:02:16.9]}
22... Bd7 {[%clk 0:01:27.5]} 23. Rc1 {[%clk 0:02:17.6]} 23... Rc8 {[%clk
0:01:29.4]} 24. Rxc8 {[%clk 0:02:17.5]} 24... Bxc8 {[%clk 0:01:30.3]} 25. f4
{[%clk 0:02:13.8]} 25... h6 {[%clk 0:01:26.9]} 26. h4 {[%clk 0:02:13.8]} 26...
g5 {[%clk 0:01:21.7]} 27. hxg5 {[%clk 0:02:14.6]} 27... hxg5 {[%clk 0:01:23.6]}
28. g3 {[%clk 0:02:13.6]} 28... Bd7 {[%clk 0:01:25.2]} 29. Kf2 {[%clk
0:02:14.2]} 29... gxf4 {[%clk 0:01:25.1]} 30. gxf4 {[%clk 0:02:14.8]} 30... e6
{[%clk 0:01:24.2]} 31. dxe6 {[%clk 0:02:11.1]} 31... fxe6 {[%clk 0:01:26.1]} 32.
e5 {[%clk 0:02:12]} 32... dxe5 {[%clk 0:01:27.3]} 33. fxe5 {[%clk 0:02:12.9]}
33... Kg6 {[%clk 0:01:27.2]} 34. Ke3 {[%clk 0:02:12]} 34... Kg5 {[%clk
0:01:28.8]} 35. Ke4 {[%clk 0:02:08.5]} 35... Kg4 {[%clk 0:01:27]} 36. Ke3 {[%clk
0:02:08.7]} 36... Kg3 {[%clk 0:01:25.9]} 37. Nb3 {[%clk 0:02:06.8]} 37... Bc6
{[%clk 0:01:19.7]} 38. Nc5 {[%clk 0:01:58.9]} 38... Bd5 {[%clk 0:01:20.5]} 39.
Kd4 {[%clk 0:01:51.2]} 39... b6 {[%clk 0:01:08.5]} 40. Nd7 {[%clk 0:01:50.1]}
40... b5 {[%clk 0:01:10.1]} 41. Nf6 {[%clk 0:01:47.8]} 41... Bc4 {[%clk
0:01:08.6]} 42. Ne4+ {[%clk 0:01:32.9]} 42... Kf4 {[%clk 0:01:03.9]} 43. Nd6
{[%clk 0:01:31]} 43... Bf1 {[%clk 0:00:59]} 44. Ne8 {[%clk 0:01:31.6]} 44... Be2
{[%clk 0:00:57.5]} 45. Ng7 {[%clk 0:01:28]} 45... Bc4 {[%clk 0:00:56.4]} 46. Ne8
{[%clk 0:01:28.9]} 46... Be2 {[%clk 0:00:56.2]} 47. Nc7 {[%clk 0:01:17.7]} 47...
Bc4 {[%clk 0:00:55.1]} 48. Na8 {[%clk 0:01:17.7]} 48... Be2 {[%clk 0:00:48.9]}
49. Nb6 {[%clk 0:01:14.5]} 49... Bf1 {[%clk 0:00:45.9]} 50. Nd7 {[%clk
0:01:13.2]} 50... Be2 {[%clk 0:00:45.7]} 51. Kc5 {[%clk 0:01:10.5]} 51... Ke4
{[%clk 0:00:43.1]} 52. Kd6 {[%clk 0:01:11.6]} 52... Bc4 {[%clk 0:00:41]} 53.
Nc5+ {[%clk 0:01:11.4]} 53... Kf5 {[%clk 0:00:38.2]} 54. Na6 {[%clk 0:01:10.8]}
54... Be2 {[%clk 0:00:38.7]} 55. Nc7 {[%clk 0:01:06.6]} 55... Bc4 {[%clk
0:00:40.2]} 56. Ne8 {[%clk 0:01:07.8]} 56... Kg6 {[%clk 0:00:38.5]} 57. Nc7
{[%clk 0:00:56.4]} 57... Kf5 {[%clk 0:00:38.8]} 58. Na6 {[%clk 0:00:38.1]} 58...
Be2 {[%clk 0:00:36.1]} 59. Nb8 {[%clk 0:00:38.1]} 59... Bf1 {[%clk 0:00:35.1]}
60. Nc6 {[%clk 0:00:38.5]} 60... Bc4 {[%clk 0:00:32.2]} 61. Nd4+ {[%clk
0:00:39.2]} 1-0